bitfinex-derivatives/quotes_ETHF0:USTF0_20250410
["timestamp","ask_amount","ask_price","bid_price","bid_amount"]
[1744259288453,0.54176898,1610.3,1610.2,58.42255]
[1744259288644,10.26299409,1610.7,1610.2,11.38]
[1744259288956,0.51956685,1610.6,1610.5,4.45012]
[1744259289247,1.24173,1611.3,1610.5,12.74892664]
[1744259289441,3.10426,1611.3,1610.7,1.24214]
[1744259289645,1.24216,1610.8,1610.7,1.24214]
[1744259289944,1.24198,1611.0,1610.9,1.24197]
[1744259290348,1.24198,1611.0,1610.9,6.02818409]
[1744259290752,8.54646925,1611.0,1610.9,10.47968409]
[1744259291049,1.24201,1610.9,1610.8,0.00931532]
[1744259291249,1.24201,1610.9,1610.8,4.79552941]
[1744259291453,2.85521,1610.9,1610.8,4.79552941]
[1744259291847,1.24201,1610.9,1610.8,4.79552941]
[1744259292249,6.24201,1610.9,1610.8,0.00931532]
[1744259292553,7.78771,1610.9,1610.8,0.00931532]
[1744259293141,7.78771,1610.9,1610.8,5.32e-06]
[1744259293540,2.78771,1610.9,1610.8,5.32e-06]
[1744259294247,7.78771,1610.9,1610.8,5.32e-06]
[1744259294649,2.78771,1610.9,1610.8,5.32e-06]
[1744259295158,1.24239,1610.4,1610.3,42.04242]
[1744259295452,1.24239,1610.4,1610.3,46.49392]
[1744259295658,7.6378,1610.7,1610.3,45.58621409]
[1744259295954,1.24235,1610.5,1610.4,6.02852409]
[1744259296654,1.24235,1610.5,1610.4,10.48002409]
[1744259296850,1.24235,1610.5,1610.4,9.23771409]
[1744259297356,1.24235,1610.5,1610.4,6.02860409]
[1744259297557,10.74322,1610.7,1610.5,1.24228]
[1744259297558,1.2423,1610.6,1610.5,1.24228]
[1744259297755,1.2423,1610.6,1610.5,6.02853409]
[1744259298147,1.2423,1610.6,1610.5,4.78621409]
[1744259298554,1.2423,1610.6,1610.5,9.23771409]
[1744259298856,1.24239,1610.4,1610.3,40.8]
[1744259299158,1.24238,1610.5,1610.4,4.78621409]
[1744259299354,1.24254,1610.3,1610.2,1.24252]
[1744259299550,1.24254,1610.3,1610.2,5.69402]
[1744259299754,1.24254,1610.3,1610.2,51.28023409]
[1744259300051,7.37829409,1610.8,1610.4,1.24239]
[1744259300258,1.24221,1610.7,1610.6,1.24216]
[1744259300459,1.24221,1610.7,1610.6,6.02845409]
[1744259301359,1.24221,1610.7,1610.6,9.23771409]
[1744259301559,1.24221,1610.7,1610.6,10.47995409]
[1744259301861,1.24216,1610.8,1610.7,1.24213]
[1744259302060,1.24216,1610.8,1610.7,6.02834409]
[1744259302359,1.24216,1610.8,1610.7,4.78621409]
[1744259302560,6.06878418,1610.8,1610.7,9.23771409]
[1744259302962,7.62378418,1610.8,1610.7,4.78621409]
[1744259303968,6.38162418,1610.8,1610.5,4.24247]
[1744259304155,1.24246,1610.4,1610.3,1.24242]
[1744259304461,1.24246,1610.4,1610.3,7.18672]
[1744259304759,1.24246,1610.4,1610.3,11.97293409]
[1744259305060,1.24246,1610.4,1610.3,16.97293409]
[1744259306461,2.87789,1610.5,1610.4,1.24239]
[1744259306661,1.24239,1610.5,1610.4,6.02860409]
[1744259307165,1.24239,1610.5,1610.4,4.78621409]
[1744259308867,2.81119,1610.5,1610.4,6.32441409]
[1744259310571,2.81119,1610.5,1610.2,43.51008]
[1744259310572,1.24247,1610.3,1610.2,1.4676]
[1744259310867,1.24247,1610.3,1610.2,7.5383]
[1744259311067,1.24247,1610.3,1610.2,12.32451409]
[1744259312061,1.24247,1610.3,1610.2,7.87301409]
[1744259312369,2.77587,1610.3,1610.2,9.11556409]
[1744259312669,2.77587,1610.3,1610.2,7.87301409]
[1744259313169,2.71886,1610.4,1610.2,9.11556409]
[1744259313468,1.24246,1610.4,1610.3,7.61368409]
[1744259313660,1.24246,1610.4,1610.3,9.06958409]
[1744259314067,1.24246,1610.4,1610.3,13.52108409]
[1744259314259,1.24246,1610.4,1610.3,12.27861409]
[1744259314570,1.24246,1610.4,1610.3,13.52108409]
[1744259314771,1.24246,1610.4,1610.3,12.27861409]
[1744259315270,2.78976,1610.4,1610.3,12.27861409]
[1744259315658,2.78976,1610.4,1610.3,1.585]
[1744259315863,1.24246,1610.4,1610.3,6.37121409]
[1744259316064,1.24246,1610.4,1610.3,7.61368409]
[1744259316264,1.24246,1610.4,1610.3,6.37121409]
[1744259316766,2.83866,1610.4,1610.3,6.37121409]
[1744259317270,2.83866,1610.4,1610.3,1.585]
[1744259317470,4.42756,1610.4,1610.3,1.585]
[1744259319566,1.24246,1610.4,1610.3,6.37121409]
[1744259319875,6.06908418,1610.4,1610.3,10.82271409]
[1744259320063,7.75598418,1610.4,1610.3,10.82271409]
[1744259320264,7.75598418,1610.4,1610.3,1.585]
[1744259320771,7.75598418,1610.4,1610.3,6.37121409]
[1744259321481,1.24255,1610.2,1610.1,1.4559]
[1744259321775,1.24255,1610.2,1610.1,7.5912]
[1744259321973,1.24255,1610.2,1610.1,12.37741409]
[1744259322978,1.24255,1610.2,1610.1,13.62004409]
[1744259323169,1.24255,1610.3,1610.2,1.24255]
[1744259323475,1.24255,1610.3,1610.2,6.34181409]
[1744259323971,6.06917418,1610.3,1610.2,10.79331409]
[1744259324372,6.06917418,1610.3,1610.2,12.03586409]
[1744259325379,4.82662418,1610.3,1610.2,12.03586409]
[1744259325579,6.06909418,1610.3,1610.2,12.03586409]
[1744259326379,6.06909418,1610.3,1610.2,10.79331409]
[1744259327379,6.06909418,1610.3,1610.2,12.03586409]
[1744259327681,6.06909418,1610.3,1610.2,10.79331409]
[1744259328071,6.06909418,1610.3,1610.2,12.03586409]
[1744259328271,6.06909418,1610.3,1610.2,6.34181409]
[1744259328580,6.06909418,1610.3,1610.2,7.58436409]
[1744259328878,6.06909418,1610.3,1610.2,6.34181409]
[1744259329079,6.06909418,1610.3,1610.2,12.03586409]
[1744259329471,6.06909418,1610.3,1610.2,10.79331409]
[1744259329779,6.06909418,1610.3,1610.2,12.03586409]
[1744259330080,6.06909418,1610.3,1610.2,10.79331409]
[1744259330477,6.06909418,1610.3,1610.2,12.03586409]
[1744259330676,6.06909418,1610.3,1610.2,10.79331409]
[1744259332079,6.06909418,1610.3,1610.2,6.34181409]
[1744259332675,9.27689418,1610.3,1610.2,6.34181409]
[1744259332976,9.27689418,1610.3,1610.2,7.58436409]
[1744259333174,12.68669662,1610.3,1610.2,7.58436409]
[1744259333378,9.47889662,1610.3,1610.2,7.58436409]
[1744259333579,9.47889662,1610.3,1610.2,6.34181409]
[1744259333977,9.47889662,1610.3,1610.2,10.79331409]
[1744259334575,12.68669662,1610.3,1610.2,6.34181409]
[1744259334783,14.37269662,1610.3,1610.2,6.34181409]
[1744259338682,7.06820737,1610.3,1610.2,6.34181409]
[1744259339285,5.38220737,1610.3,1610.2,6.34181409]
[1744259339474,2.17440737,1610.3,1610.2,6.34181409]
[1744259341683,2.17440737,1610.3,1610.2,10.79331409]
[1744259343779,2.17440737,1610.3,1610.2,6.0071]
[1744259343985,2.17440737,1610.3,1610.2,10.79331409]
[1744259346483,6.60240737,1610.3,1610.2,10.79331409]
[1744259346883,9.81020737,1610.3,1610.2,10.79331409]
[1744259347180,9.81020737,1610.3,1610.2,6.34181409]
[1744259347380,11.41880737,1610.3,1610.2,6.34181409]
[1744259347979,12.90690737,1610.3,1610.2,6.34181409]
[1744259351089,9.81020737,1610.3,1610.2,6.34181409]
[1744259351286,6.60240737,1610.3,1610.2,6.34181409]
[1744259351479,6.60240737,1610.3,1610.2,7.58436409]
[1744259351681,2.17440737,1610.3,1610.2,7.58436409]
[1744259351889,13.77951881,1610.3,1610.2,7.58436409]
[1744259352485,13.77951881,1610.3,1610.2,12.03586409]
[1744259353286,13.77951881,1610.3,1610.2,10.79331409]
[1744259353486,13.77951881,1610.3,1610.2,12.03586409]
[1744259353891,13.77951881,1610.3,1610.2,10.79331409]
[1744259354091,13.77951881,1610.3,1610.2,12.03586409]
[1744259355194,13.77951881,1610.3,1610.2,10.79331409]
[1744259355896,13.77951881,1610.3,1610.2,7.58436409]
[1744259356397,11.91106967,1610.3,1610.2,6.34181409]
[1744259356598,11.91106967,1610.3,1610.2,10.79331409]
[1744259360494,16.33906967,1610.3,1610.2,6.34181409]
[1744259360790,21.11186967,1610.3,1610.2,4.78621409]
[1744259362194,1.2427,1610.0,1609.9,8.08587913]
[1744259362394,4.4505,1610.0,1609.9,6.0378]
[1744259362596,10.4358,1610.0,1609.9,10.83568409]
[1744259362797,1.24278,1609.9,1609.8,40.8]
[1744259362997,1.24286,1609.8,1609.7,1.5241]
[1744259363195,3.0373,1609.9,1609.6,14.55363314]
[1744259363196,1.24293,1609.7,1609.6,14.55363314]
[1744259363396,13.06222409,1609.7,1609.6,14.55363314]
[1744259363592,18.06222409,1609.7,1609.6,14.55363314]
[1744259363896,18.06222409,1609.7,1609.6,9.76136314]
[1744259364096,18.06222409,1609.7,1609.6,7.50246314]
[1744259364297,18.06222409,1609.7,1609.6,4.08886314]
[1744259364491,18.06222409,1609.7,1609.6,2.36328314]
[1744259364798,18.06222409,1609.7,1609.6,3.14e-06]
[1744259365595,18.5702511,1609.7,1609.6,3.14e-06]
[1744259366194,13.5702511,1609.7,1609.6,3.14e-06]
[1744259366797,13.06222409,1609.7,1609.6,3.14e-06]
[1744259367302,13.06022409,1609.7,1609.6,3.14e-06]
[1744259367702,13.06022409,1609.7,1609.6,4.96328723]
[1744259367900,13.06022409,1609.7,1609.6,1.68950314]
[1744259368103,13.06022409,1609.7,1609.6,3.14e-06]
[1744259368605,1.24301,1609.6,1609.5,3.2567]
[1744259368800,4.45081,1609.6,1609.5,6.53048409]
[1744259369002,4.45081,1609.6,1609.5,10.98198409]
[1744259369500,6.08551,1609.6,1609.5,4.95368409]
[1744259369705,7.65311,1609.6,1609.5,4.95368409]
[1744259370002,4.45081,1609.6,1609.5,4.95368409]
[1744259370201,1.24301,1609.6,1609.5,4.95368409]
[1744259370399,4.45081,1609.6,1609.5,4.95368409]
[1744259370701,1.24301,1609.6,1609.5,4.95368409]
[1744259370897,1.24301,1609.6,1609.5,9.40518409]
[1744259371099,4.45081,1609.6,1609.5,9.40518409]
[1744259371510,6.07971,1609.6,1609.5,9.40518409]
[1744259371706,6.07971,1609.6,1609.5,4.95368409]
[1744259372406,1.24324,1609.3,1609.2,1.5768]
[1744259372598,1.24324,1609.3,1609.2,6.0283]
[1744259372798,1.24324,1609.3,1609.2,9.30208409]
[1744259373605,1.24324,1609.3,1609.2,14.30208409]
[1744259373805,1.24324,1609.3,1609.2,15.88978409]
[1744259374807,1.24324,1609.3,1609.2,10.88978409]
[1744259375107,1.24324,1609.3,1609.2,9.31298409]
[1744259375703,2.92964,1609.3,1609.2,9.31298409]
[1744259376901,1.24324,1609.3,1609.2,9.31298409]
[1744259377111,6.07898189,1609.3,1609.2,9.31298409]
[1744259377309,6.07898189,1609.3,1609.2,4.86148409]
[1744259378000,6.07898189,1609.3,1609.2,9.31298409]
[1744259379203,4.83574189,1609.3,1609.2,11.10480409]
[1744259379408,6.07898189,1609.3,1609.2,11.10480409]
[1744259380002,6.07898189,1609.3,1609.2,15.55630409]
[1744259380202,6.07898189,1609.3,1609.2,10.55630409]
[1744259380403,6.07898189,1609.3,1609.2,15.55630409]
[1744259380604,1.24324,1609.3,1609.2,15.55630409]
[1744259381607,1.24324,1609.3,1609.2,14.31298409]
[1744259382305,1.24324,1609.3,1609.2,9.86148409]
[1744259382808,1.24324,1609.3,1609.2,4.86148409]
[1744259383107,1.24324,1609.3,1609.2,3.27378409]
[1744259383312,1.24324,1609.3,1609.0,3.0547]
[1744259383313,1.2434,1609.1,1609.0,3.0547]
[1744259383605,1.24376,1608.7,1608.4,6.31762]
[1744259383797,1.2437,1608.8,1608.5,6.11585]
[1744259384002,0.00931532,1609.2,1609.0,1.24344]
[1744259384204,1.25263532,1609.2,1609.1,3.0062]
[1744259384405,1.25263532,1609.2,1609.1,6.27998409]
[1744259384599,0.00931532,1609.2,1609.1,7.52338409]
[1744259385103,0.00931532,1609.2,1609.1,14.09598409]
[1744259385704,1.25263532,1609.2,1609.1,14.09598409]
[1744259385910,0.00931532,1609.2,1609.1,14.09598409]
[1744259386211,0.38424189,1609.4,1609.3,1.24324]
[1744259386401,8.50793233,1609.6,1609.5,1.24309]
[1744259386603,7.26492233,1609.6,1609.5,1.24309]
[1744259386805,7.26492233,1609.6,1609.5,4.51687409]
[1744259387006,7.26492233,1609.6,1609.5,6.17067409]
[1744259387309,8.50793233,1609.6,1609.5,6.17067409]
[1744259387615,7.26492233,1609.6,1609.5,6.17067409]
[1744259388616,8.50793233,1609.6,1609.5,6.17067409]
[1744259388912,8.50793233,1609.6,1609.5,4.92758409]
[1744259389212,1.24301,1609.6,1609.5,4.92758409]
[1744259389417,1.24301,1609.6,1609.5,6.17067409]
[1744259389614,1.24301,1609.6,1609.5,6.49448409]
[1744259392014,1.24301,1609.6,1609.5,7.73757409]
[1744259392413,1.24301,1609.6,1609.5,6.49448409]
[1744259394021,1.25232532,1609.7,1609.5,6.49448409]
[1744259394215,1.25232532,1609.7,1609.6,6.06939409]
[1744259395823,1.25232532,1609.7,1609.6,4.82638409]
[1744259396016,1.24301,1609.6,1609.5,1.5669]
[1744259396212,1.24309,1609.5,1609.4,0.00931532]
[1744259396514,5.67009,1609.5,1609.4,0.00931532]
[1744259396713,7.52319,1609.5,1609.4,0.00931532]
[1744259400418,5.67009,1609.5,1609.4,0.00931532]
[1744259401228,15.73378488,1609.5,1609.4,0.00931532]
[1744259401533,9.44058488,1609.5,1609.4,0.00931532]
[1744259401715,13.86558488,1609.5,1609.4,0.00931532]
[1744259401915,15.71978488,1609.5,1609.4,0.00931532]
[1744259404022,9.44058488,1609.5,1609.4,0.00931532]
[1744259404329,9.44058488,1609.5,1609.4,3.28309941]
[1744259404718,9.44058488,1609.5,1609.4,5.18479941]
[1744259405126,2.17566255,1609.5,1609.4,5.18479941]
[1744259406325,2.17566255,1609.5,1609.4,0.00931532]
[1744259406526,3.92386255,1609.5,1609.4,0.00931532]
[1744259413131,3.92386255,1609.5,1609.4,3.28309941]
[1744259414030,15.44199488,1609.5,1609.4,3.28309941]
[1744259414733,18.11879488,1609.5,1609.4,5.10809941]
[1744259415034,13.69379488,1609.5,1609.4,8.09946941]
[1744259416033,13.69379488,1609.5,1609.4,6.85629941]
[1744259416431,13.69379488,1609.5,1609.4,8.09946941]
[1744259416636,12.45070488,1609.5,1609.4,13.09946941]
[1744259417031,12.45070488,1609.5,1609.4,18.09946941]
[1744259419238,0.93257255,1609.5,1609.4,18.09946941]
[1744259421133,2.17566255,1609.5,1609.4,23.09704854]
[1744259421737,2.17566255,1609.5,1609.4,18.09704854]
[1744259422539,0.93257255,1609.5,1609.4,18.09704854]
[1744259423542,2.17566255,1609.5,1609.4,14.82326445]
[1744259423745,1.24309,1609.5,1609.4,13.09704854]
[1744259424048,1.24309,1609.5,1609.4,6.83189445]
[1744259424239,12.07708409,1609.5,1609.4,0.00931532]
[1744259424541,17.47468409,1609.5,1609.4,0.00931532]
[1744259424741,12.47468409,1609.5,1609.4,0.00931532]
[1744259425537,12.47468409,1609.5,1609.4,5.04079941]
[1744259426746,12.47468409,1609.5,1609.4,0.00931532]
[1744259427642,13.40725664,1609.5,1609.4,0.00931532]
[1744259427844,18.40725664,1609.5,1609.4,0.00931532]
[1744259428241,1.24363,1608.8,1608.7,6.24121913]
[1744259428445,1.24363,1608.8,1608.7,3.7207]
[1744259428644,5.66663,1608.8,1608.7,3.27378409]
[1744259428941,8.87443,1608.8,1608.7,3.27378409]
[1744259429747,10.71933,1608.8,1608.7,5.12348409]
[1744259430136,10.71933,1608.8,1608.7,3.27378409]
[1744259430646,10.71933,1608.8,1608.6,9.70908937]
[1744259430647,1.24371,1608.7,1608.6,9.70908937]
[1744259431146,1.24371,1608.7,1608.6,12.98287346]
[1744259431344,3.08861,1608.7,1608.6,12.98287346]
[1744259432346,1.24371,1608.7,1608.6,12.98287346]
[1744259433749,1.24371,1608.7,1608.6,14.22665346]
[1744259434242,0.00931532,1608.8,1608.7,1.24371]
[1744259434449,0.00931532,1608.8,1608.7,4.51749409]
[1744259434654,0.00931532,1608.8,1608.7,9.51749409]
[1744259434841,8.22062151,1608.8,1608.7,14.51749409]
[1744259435150,9.46425151,1608.8,1608.7,14.51749409]
[1744259435849,8.22062151,1608.8,1608.7,14.51749409]
[1744259436043,9.46425151,1608.8,1608.7,14.51749409]
[1744259436246,8.22062151,1608.8,1608.7,9.51749409]
[1744259436849,9.46425151,1608.8,1608.7,9.51749409]
[1744259437346,8.22062151,1608.8,1608.7,22.72287322]
[1744259437848,8.22062151,1608.8,1608.7,63.52287322]
[1744259437849,5.33942151,1608.8,1608.7,63.52287322]
[1744259438052,1.52e-06,1608.8,1608.7,63.52287322]
[1744259439651,0.00931532,1608.9,1608.8,1.24363]
[1744259439955,0.00931532,1608.9,1608.8,6.34411409]
[1744259440553,0.00931532,1608.9,1608.8,47.14411409]
[1744259440854,0.00931532,1608.9,1608.8,52.14411409]
[1744259442659,1.25286532,1608.9,1608.8,52.14411409]
[1744259443254,0.00931532,1608.9,1608.8,52.14411409]
[1744259444154,1.25286532,1608.9,1608.8,52.14411409]
[1744259444654,0.00931532,1608.9,1608.8,52.14411409]
[1744259444846,1.25286532,1608.9,1608.8,50.31741409]
[1744259445454,1.25286532,1608.9,1608.8,52.20511409]
[1744259445649,1.25286532,1608.9,1608.8,10.16148409]
[1744259445856,0.00931532,1608.9,1608.8,11.40511409]
[1744259446054,0.00931532,1608.9,1608.8,52.20511409]
[1744259446254,1.25286532,1608.9,1608.8,52.20511409]
[1744259446851,3.07036532,1608.9,1608.8,52.20511409]
[1744259447255,3.07036532,1608.9,1608.8,50.31741409]
[1744259447455,3.07036532,1608.9,1608.8,45.31741409]
[1744259448358,4.97036532,1608.9,1608.8,45.31741409]
[1744259448945,4.97036532,1608.9,1608.8,45.97568409]
[1744259450158,4.97036532,1608.9,1608.8,47.21931409]
[1744259451159,4.97036532,1608.9,1608.8,6.41931409]
[1744259454357,3.15286532,1608.9,1608.8,6.41931409]
[1744259454667,0.00931532,1608.9,1608.8,16.41689322]
[1744259454961,0.00931532,1608.9,1608.8,18.17039322]
[1744259455356,0.00931532,1608.9,1608.8,58.97039322]
[1744259455765,0.00931532,1608.9,1608.8,63.97039322]
[1744259456659,12.92575939,1609.4,1608.9,2.02108877]
[1744259456863,14.16901939,1609.4,1609.3,1.24324]
[1744259457055,10.96121939,1609.4,1609.3,3.26432877]
[1744259457452,9.71795939,1609.4,1609.3,5.17492877]
[1744259457656,10.96112939,1609.4,1609.3,5.17492877]
[1744259457856,9.71795939,1609.4,1609.3,5.17492877]
[1744259458363,9.71795939,1609.4,1609.3,10.17492877]
[1744259458561,9.71795939,1609.4,1609.3,15.1725079]
[1744259458755,9.71795939,1609.4,1609.3,19.5935079]
[1744259459258,7.69687062,1609.4,1609.3,22.57241913]
[1744259459961,4.67518062,1609.4,1609.3,22.57241913]
[1744259461464,4.67518062,1609.4,1609.3,12.57484]
[1744259461661,5.91835062,1609.4,1609.3,8.15384]
[1744259461863,1.24317,1609.4,1609.3,8.15384]
[1744259462163,3.12996532,1609.5,1609.4,1.24317]
[1744259462368,0.00931532,1609.5,1609.4,1.24317]
[1744259462662,0.00931532,1609.5,1609.4,3.10077]
[1744259463064,0.00931532,1609.5,1609.4,6.30857]
[1744259463855,1.25240532,1609.5,1609.4,3.10077]
[1744259464257,0.00931532,1609.5,1609.4,3.10077]
[1744259465158,0.00931532,1609.5,1609.4,6.30857]
[1744259465863,5.32e-06,1609.5,1609.4,15.72857]
[1744259466168,5.32e-06,1609.5,1609.4,20.72614913]
[1744259466364,1.7992,1610.5,1610.2,1.24248]
[1744259466671,4.9415,1610.5,1610.3,1.24245]
[1744259466859,4.9415,1610.5,1610.0,3.2078]
[1744259466860,1.24247,1610.3,1610.2,1.24249]
[1744259467259,2.97195,1610.4,1610.3,1.24247]
[1744259467466,1.24247,1610.3,1610.2,42.0425]
[1744259467663,2.97197,1610.3,1610.2,40.8]
[1744259467962,7.97197,1610.3,1610.2,40.8]
[1744259468370,7.97197,1610.3,1610.2,42.04255]
[1744259468671,1.24255,1610.2,1610.1,1.25188532]
[1744259468862,4.82145,1610.2,1610.1,1.25188532]
[1744259469262,4.82145,1610.2,1610.1,42.05188532]
[1744259470467,9.82145,1610.2,1610.1,40.80931532]
[1744259470970,9.82145,1610.2,1610.1,0.00931532]
[1744259471269,20.07444409,1610.2,1610.1,0.00931532]
[1744259472169,1.24293,1609.7,1609.6,8.06788]
[1744259472364,1.24293,1609.7,1609.6,6.32048]
[1744259472564,1.24293,1609.7,1609.6,4.45078]
[1744259472965,4.80533,1609.7,1609.6,4.45078]
[1744259473876,4.80533,1609.7,1609.6,45.25078]
[1744259474675,4.80533,1609.7,1609.6,4.45078]
[1744259475464,4.80533,1609.7,1609.6,3.00338]
[1744259476173,1.24301,1609.6,1609.5,40.80931532]
[1744259476475,1.24301,1609.6,1609.5,1.25240532]
[1744259476476,3.11971,1609.6,1609.5,1.25240532]
[1744259476666,1.8767,1609.6,1609.5,1.25240532]
[1744259476867,9.3762,1609.8,1609.6,1.24301]
[1744259477068,12.49576,1609.8,1609.7,1.7604]
[1744259477772,1.7494,1609.8,1609.7,3.00333]
[1744259477977,13.27972409,1609.9,1609.8,1.24286]
[1744259478277,7.07682409,1609.9,1609.8,2.98456]
[1744259478475,1.24283,1609.9,1609.8,2.98456]
[1744259478672,6.23447,1610.0,1609.9,1.24278]
[1744259478878,4.45057,1610.0,1609.9,2.98448]
[1744259481578,3.2078,1610.0,1609.9,2.98448]
[1744259481774,4.4505,1610.0,1609.9,2.98448]
[1744259483280,1.54455532,1610.4,1609.9,1.7417]
[1744259483482,1.24188,1611.1,1610.3,3.2078]
[1744259483670,1.24174,1611.3,1610.8,1.24209]
[1744259483982,12.13470201,1610.9,1610.8,42.04209]
[1744259484194,12.13470201,1610.9,1610.8,50.75589]
[1744259484892,12.13470201,1610.9,1610.8,45.75589]
[1744259486189,1.24201,1610.9,1610.8,43.85779]
[1744259486393,1.24201,1610.9,1610.8,42.04209]
[1744259486691,4.95661,1610.9,1610.8,42.04209]
[1744259486895,12.14401733,1611.0,1610.9,1.24201]
[1744259487083,12.14401733,1611.0,1610.9,3.00471]
[1744259487585,13.38594733,1611.0,1610.9,3.00471]
[1744259487789,13.84761733,1611.0,1610.9,3.00471]
[1744259487987,15.08954733,1611.0,1610.9,3.00471]
[1744259488186,1.24201,1610.9,1610.8,40.8]
[1744259488386,1.24209,1610.8,1610.7,0.00931532]
[1744259488584,3.09149,1610.8,1610.7,0.00931532]
[1744259488782,1.8494,1610.8,1610.7,42.05147532]
[1744259489588,3.09149,1610.8,1610.7,42.05147532]
[1744259490483,3.09149,1610.8,1610.7,40.80931532]
[1744259490688,8.09149,1610.8,1610.7,40.80931532]
[1744259490891,9.74299,1610.8,1610.7,40.80931532]
[1744259491090,4.74299,1610.8,1610.7,40.80931532]
[1744259491287,4.74299,1610.8,1610.7,0.00931532]
[1744259493402,4.74299,1610.8,1610.7,1.81871532]
[1744259494101,4.74299,1610.8,1610.7,0.00931532]
[1744259494297,1.24209,1610.8,1610.7,0.00931532]
[1744259494598,1.24209,1610.8,1610.7,1.81871532]
[1744259495603,3.03859,1610.8,1610.7,1.81871532]
[1744259495898,3.03859,1610.8,1610.7,0.00931532]
[1744259496898,13.87258409,1610.8,1610.7,5.32e-06]
[1744259497199,17.08038409,1610.8,1610.7,5.32e-06]
[1744259502001,12.08038409,1610.8,1610.7,5.32e-06]
[1744259503708,13.01226421,1610.8,1610.7,5.32e-06]
[1744259504614,9.80446421,1610.8,1610.7,5.32e-06]
[1744259505217,9.80446421,1610.8,1610.7,1.74670532]
[1744259506010,3.97047012,1610.8,1610.7,1.74670532]
[1744259507009,2.17397012,1610.8,1610.7,1.74670532]
[1744259508613,1.24209,1610.8,1610.7,1.74670532]
[1744259508918,1.24209,1610.8,1610.7,2.98886532]
[1744259509108,1.24209,1610.8,1610.7,1.74670532]
[1744259509717,1.24209,1610.8,1610.7,2.98886532]
[1744259509917,1.24209,1610.8,1610.7,1.74670532]
[1744259510418,1.24209,1610.8,1610.7,2.98886532]
[1744259510621,1.24209,1610.8,1610.7,1.74670532]
[1744259512720,1.24209,1610.8,1610.7,2.98886532]
[1744259513014,1.24209,1610.8,1610.7,1.74670532]
[1744259513220,2.91119,1610.8,1610.7,1.74670532]
[1744259513521,2.91119,1610.8,1610.7,5.32e-06]
[1744259513722,4.72609,1610.8,1610.7,5.32e-06]
[1744259515417,4.72609,1610.8,1610.7,1.72740532]
[1744259516218,7.93389,1610.8,1610.7,5.32e-06]
[1744259516419,12.77224675,1610.8,1610.7,5.32e-06]
[1744259516618,17.77224675,1610.8,1610.7,5.32e-06]
[1744259517624,23.60624084,1610.8,1610.7,5.32e-06]
[1744259517812,1.24255,1610.2,1610.1,1.771]
[1744259518214,1.24293,1609.7,1609.6,14.15989937]
[1744259518416,1.24293,1609.7,1609.6,14.34729937]
[1744259518619,1.24293,1609.7,1609.6,60.14729937]
[1744259519423,1.24293,1609.7,1609.6,56.91829937]
[1744259519621,1.25222532,1609.8,1609.7,1.24293]
[1744259519814,1.25222532,1609.8,1609.7,3.01393]
[1744259521225,0.00931532,1609.8,1609.7,3.01393]
[1744259521429,0.00931532,1609.8,1609.7,8.01393]
[1744259522225,0.00931532,1609.8,1609.7,12.42793]
[1744259522534,1.25217532,1609.8,1609.7,3.01393]
[1744259523030,1.25217532,1609.8,1609.7,8.01393]
[1744259523424,0.00931532,1609.8,1609.7,8.01393]
[1744259523625,0.00931532,1609.8,1609.7,18.01150913]
[1744259523924,0.00931532,1609.8,1609.7,58.81150913]
[1744259525734,4.84705547,1610.0,1609.9,1.24278]
[1744259525937,4.84705547,1610.0,1609.9,8.86558]
[1744259526235,4.84705547,1610.0,1609.9,13.86558]
[1744259526535,4.84705547,1610.0,1609.9,54.66558]
[1744259527031,4.84705547,1610.0,1609.9,49.66558]
[1744259527227,4.84705547,1610.0,1609.9,45.25058]
[1744259527432,4.84705547,1610.0,1609.9,50.25058]
[1744259527832,0.00931532,1610.1,1609.9,59.00537913]
[1744259528032,7.41578238,1610.4,1610.3,1.24247]
[1744259528336,12.09589189,1610.6,1610.5,1.24232]
[1744259528536,12.09589189,1610.6,1610.5,4.45012]
[1744259528731,12.09589189,1610.6,1610.5,50.25012]
[1744259529038,12.09589189,1610.6,1610.5,55.24769913]
[1744259529835,0.00931532,1610.7,1610.6,1.24224]
[1744259530938,5.32e-06,1610.7,1610.6,10.65624]
[1744259531129,5.32e-06,1610.7,1610.6,13.94334]
[1744259531336,5.32e-06,1610.7,1610.6,15.65234]
[1744259531735,5.32e-06,1610.7,1610.6,9.09914]
[1744259533336,5.32e-06,1610.7,1610.6,19.09914]
[1744259533548,5.32e-06,1610.7,1610.6,20.65014]
[1744259534640,5.32e-06,1610.7,1610.6,15.65014]
[1744259536936,5.32e-06,1610.7,1610.6,14.09914]
[1744259539642,5.32e-06,1610.7,1610.6,12.39014]
[1744259540939,1.74360532,1610.7,1610.6,7.97614]
[1744259541639,5.32e-06,1610.7,1610.6,7.97614]
[1744259541842,5.32e-06,1610.7,1610.6,12.97614]
[1744259542036,5.32e-06,1610.7,1610.6,14.52664]
[1744259542237,5.32e-06,1610.7,1610.6,15.00280533]
[1744259543738,5.32e-06,1610.7,1610.6,9.52664]
[1744259544838,5.32e-06,1610.7,1610.6,14.52664]
[1744259545343,5.32e-06,1610.7,1610.6,9.52664]
[1744259547245,5.32e-06,1610.7,1610.6,14.52421913]
[1744259551544,5.32e-06,1610.7,1610.6,11.23981913]
[1744259551957,1.24216532,1610.7,1610.6,11.23981913]
[1744259552552,5.32e-06,1610.7,1610.6,11.23981913]
[1744259553152,5.32e-06,1610.7,1610.6,12.99621913]
[1744259555362,5.32e-06,1610.7,1610.6,11.23981913]
[1744259555850,5.32e-06,1610.7,1610.6,12.91131913]
[1744259557048,5.00000532,1610.7,1610.6,11.23981913]
[1744259557455,6.74150532,1610.7,1610.6,11.23981913]
[1744259558654,1.74150532,1610.7,1610.6,11.23981913]
[1744259558852,1.74150532,1610.7,1610.6,6.24224]
[1744259559058,2.98366532,1610.7,1610.6,6.24224]
[1744259559254,1.74150532,1610.7,1610.6,6.24224]
[1744259560554,7.98366532,1610.7,1610.6,5.0]
[1744259561453,1.24224,1610.6,1610.5,42.04225]
[1744259561654,4.60904,1610.6,1610.5,42.04225]
[1744259561856,9.60904,1610.6,1610.5,1.24225]
[1744259562452,4.60904,1610.6,1610.5,1.24225]
[1744259563160,3.3668,1610.6,1610.5,1.24225]
[1744259563656,3.3668,1610.6,1610.5,2.88015]
[1744259564354,3.3668,1610.6,1610.5,7.88015]
[1744259564556,5.32e-06,1610.7,1610.6,1.24224]
[1744259564760,5.32e-06,1610.7,1610.6,6.08794]
[1744259565056,5.32e-06,1610.7,1610.6,4.45004]
[1744259565260,1.71290532,1610.7,1610.5,11.23984913]
[1744259565456,1.24224,1610.6,1610.5,11.23984913]
[1744259565660,1.24224,1610.6,1610.5,6.23984913]